bitfinex-derivatives/quotes_BNBF0:USTF0_20250523
["timestamp","ask_amount","ask_price","bid_price","bid_amount"]
[1748027943801,1.5479126,666.75,666.11,1.12095395]
[1748027944002,1.5479126,666.74,666.11,1.12095395]
[1748027944200,1.5479126,666.73,666.11,1.12095395]
[1748027944403,1.54813792,666.72,666.11,1.12095395]
[1748027944698,1.0722687,666.71,666.11,1.12095395]
[1748027944899,1.0722687,666.7,666.11,1.12095395]
[1748027945099,1.0722687,666.69,666.11,1.12095395]
[1748027945399,1.07231729,666.68,666.11,1.12095395]
[1748027945600,1.11877837,666.8,666.11,1.12095395]
[1748027945802,1.5495332,666.79,666.11,1.12095395]
[1748027946106,1.5495332,666.79,665.1,3.73651318]
[1748027946107,2.66831157,666.78,666.13,1.12095395]
[1748027946303,1.5495332,666.77,666.13,1.12095395]
[1748027946505,1.5495332,666.76,666.13,1.12095395]
[1748027946702,1.5495332,666.75,666.13,1.12095395]
[1748027946901,1.5495332,666.74,666.13,1.12095395]
[1748027947107,1.5495332,666.73,666.13,1.12095395]
[1748027947306,1.5495332,666.72,666.13,1.12095395]
[1748027947501,1.5495332,666.71,666.13,1.12095395]
[1748027947801,1.5495332,666.7,666.13,1.12095395]
[1748027948004,1.5495332,666.69,666.13,1.12095395]
[1748027948206,1.54975848,666.68,666.13,1.12095395]
[1748027948406,1.54975848,666.67,666.13,1.12095395]
[1748027948607,1.54975848,666.66,666.13,1.12095395]
[1748027948807,1.54975848,666.65,666.13,1.12095395]
[1748027949008,1.54975848,666.64,666.12,1.12095395]
[1748027949303,1.07251428,666.63,666.12,1.12095395]
[1748027949504,1.07251428,666.62,666.12,1.12095395]
[1748027949703,1.07251428,666.61,666.12,1.12095395]
[1748027949905,1.07251428,666.6,666.12,1.12095395]
[1748027950104,1.11877837,666.72,666.12,1.12095395]
[1748027950401,1.55030161,666.71,666.12,1.12095395]
[1748027950602,1.55030161,666.7,666.12,1.12095395]
[1748027950802,1.55030161,666.69,666.12,1.12095395]
[1748027951006,1.55030161,666.68,666.12,1.12095395]
[1748027951204,1.55030161,666.67,666.12,1.12095395]
[1748027951503,1.55030161,666.66,666.12,1.12095395]
[1748027951705,1.55030161,666.65,666.13,1.12095395]
[1748027952003,1.55030161,666.64,666.13,1.12095395]
[1748027952207,1.55030161,666.63,666.13,1.12095395]
[1748027952402,1.07321793,666.62,666.13,1.12095395]
[1748027952609,1.07321793,666.61,666.13,1.12095395]
[1748027952804,1.07321793,666.6,666.13,1.12095395]
[1748027953010,1.11877837,666.72,666.13,1.12095395]
[1748027953209,1.55022409,666.71,666.13,1.12095395]
[1748027953410,1.55022409,666.7,666.13,1.12095395]
[1748027953609,1.55025781,666.69,666.13,1.12095395]
[1748027953810,1.55025781,666.68,666.13,1.12095395]
[1748027954110,1.55025781,666.67,666.13,1.12095395]
[1748027954310,1.07316408,666.66,666.13,1.12095395]
[1748027954605,2.36016408,666.65,666.13,1.12095395]
[1748027954815,1.287,666.65,666.18,1.12095395]
[1748027955010,1.07333045,666.64,666.18,1.12095395]
[1748027955207,1.287,666.65,666.18,1.12095395]
[1748027955410,1.0734117,666.64,666.18,1.12095395]
[1748027955606,1.287,666.65,666.18,1.12095395]
[1748027958215,1.07360334,666.64,666.18,1.12095395]
[1748027958511,1.287,666.65,666.18,1.12095395]
[1748027958815,1.07369344,666.64,666.2,1.12095395]
[1748027959008,1.287,666.65,666.2,1.12095395]
[1748027959215,1.07368569,666.64,666.2,1.12095395]
[1748027959512,1.287,666.65,666.2,1.12095395]
[1748027959712,1.0737799,666.64,666.2,1.12095395]
[1748027959909,1.287,666.65,666.2,1.12095395]
[1748027960212,1.07369334,666.64,666.2,1.12095395]
[1748027960413,1.287,666.65,666.2,1.12095395]
[1748027960713,1.07379062,666.64,666.2,1.12095395]
[1748027960912,1.287,666.65,666.2,1.12095395]
[1748027961111,1.287,666.65,665.21,3.73651318]
[1748027961112,1.07378588,666.64,666.19,1.12095395]
[1748027961313,1.287,666.65,666.19,1.12095395]
[1748027961514,1.0738229,666.64,666.19,1.12095395]
[1748027961714,1.287,666.65,666.19,1.12095395]
[1748027962013,1.07381574,666.64,666.19,1.12095395]
[1748027962211,1.07381574,666.63,666.19,1.12095395]
[1748027962417,1.287,666.65,666.19,1.12095395]
[1748027962614,1.07379743,666.64,666.19,1.12095395]
[1748027962819,1.07379743,666.63,666.19,1.12095395]
[1748027963019,1.07379743,666.62,666.19,1.12095395]
[1748027963319,1.287,666.65,666.19,1.12095395]
[1748027963519,1.07379277,666.64,666.19,1.12095395]
[1748027963717,1.07379277,666.63,666.17,1.12095395]
[1748027963920,1.07379277,666.62,666.17,1.12095395]
[1748027964218,1.07377356,666.61,666.17,1.12095395]
[1748027964418,1.287,666.65,666.17,1.12095395]
[1748027964622,1.07379085,666.64,666.17,1.12095395]
[1748027964821,1.07379085,666.63,666.17,1.12095395]
[1748027965014,1.07379085,666.62,666.17,1.12095395]
[1748027965218,1.287,666.65,666.17,1.12095395]
[1748027965419,1.07379664,666.64,666.17,1.12095395]
[1748027965616,1.07379664,666.63,666.17,1.12095395]
[1748027965915,1.07379664,666.62,666.17,1.12095395]
[1748027966117,1.287,666.65,666.18,1.12095395]
[1748027966318,1.07382293,666.64,666.18,1.12095395]
[1748027966518,1.07382293,666.63,666.18,1.12095395]
[1748027966718,1.07382293,666.62,666.18,1.12095395]
[1748027966921,1.287,666.65,666.18,1.12095395]
[1748027967220,1.07380817,666.64,666.18,1.12095395]
[1748027967420,1.07380817,666.63,666.18,1.12095395]
[1748027967618,1.07380817,666.62,666.18,1.12095395]
[1748027967819,1.287,666.65,666.18,1.12095395]
[1748027968023,1.07380567,666.64,666.18,1.12095395]
[1748027968223,1.07380236,666.63,666.18,1.12095395]
[1748027968420,1.07380236,666.62,666.18,1.12095395]
[1748027968623,1.287,666.65,666.18,1.12095395]
[1748027968818,1.07380741,666.64,666.18,1.12095395]
[1748027969026,1.07380741,666.63,666.18,1.12095395]
[1748027969228,1.07380741,666.62,666.12,1.12095395]
[1748027969425,1.287,666.65,666.12,1.12095395]
[1748027969621,1.07377911,666.64,666.12,1.12095395]
[1748027969820,1.07377911,666.63,666.12,1.12095395]
[1748027970026,1.07377911,666.62,666.12,1.12095395]
[1748027970226,1.287,666.65,666.12,1.12095395]
[1748027970427,1.07380294,666.64,666.12,1.12095395]
[1748027970726,1.07380294,666.63,666.12,1.12095395]
[1748027970922,1.07380294,666.62,666.12,1.12095395]
[1748027971128,1.287,666.65,666.12,1.12095395]
[1748027971325,1.07379832,666.64,666.12,1.12095395]
[1748027971526,1.07379832,666.63,666.12,1.12095395]
[1748027971725,1.07377148,666.62,666.12,1.12095395]
[1748027971922,1.287,666.65,666.12,1.12095395]
[1748027972125,1.07376987,666.64,666.12,1.12095395]
[1748027972426,1.07376987,666.63,666.12,1.12095395]
[1748027972626,1.07376987,666.62,666.12,1.12095395]
[1748027972826,1.07376987,666.61,666.12,1.12095395]
[1748027973026,1.287,666.65,666.12,1.12095395]
[1748027973227,1.07376183,666.64,666.12,1.12095395]
[1748027973428,1.07376183,666.63,666.12,1.12095395]
[1748027973628,1.07376183,666.62,666.12,1.12095395]
[1748027973829,1.07376183,666.61,666.12,1.12095395]
[1748027974127,1.287,666.65,666.12,1.12095395]
[1748027974431,1.07375034,666.64,666.12,1.12095395]
[1748027974629,1.07375034,666.63,666.12,1.12095395]
[1748027974830,1.07375034,666.62,666.12,1.12095395]
[1748027975029,1.07375034,666.61,666.12,1.12095395]
[1748027975227,1.287,666.65,666.12,1.12095395]
[1748027975426,1.55075842,666.64,666.12,1.12095395]
[1748027975626,1.07363327,666.63,666.12,1.12095395]
[1748027975931,1.07363327,666.62,666.12,1.12095395]
[1748027976132,1.287,666.65,666.12,1.12095395]
[1748027976332,1.07345745,666.64,666.12,1.12095395]
[1748027976627,1.07345745,666.63,666.12,1.12095395]
[1748027976826,1.07345745,666.62,666.12,1.12095395]
[1748027977033,1.287,666.65,666.12,1.12095395]
[1748027977332,1.0734613,666.64,666.12,1.12095395]
[1748027977531,1.0734613,666.63,666.12,1.12095395]
[1748027977727,1.0734613,666.62,666.12,1.12095395]
[1748027977926,1.287,666.65,666.12,1.12095395]
[1748027978131,1.07340627,666.64,666.12,1.12095395]
[1748027978327,1.07340627,666.63,666.12,1.12095395]
[1748027978533,1.07340627,666.62,666.12,1.12095395]
[1748027978732,1.287,666.65,666.12,1.12095395]
[1748027978930,1.07342135,666.64,666.12,1.12095395]
[1748027979133,1.07342167,666.63,666.19,1.12095395]
[1748027979329,1.07342167,666.62,666.19,1.12095395]
[1748027979527,1.287,666.65,666.19,1.12095395]
[1748027979732,1.07342532,666.64,666.19,1.12095395]
[1748027979935,1.07342532,666.63,666.19,1.12095395]
[1748027980134,1.07342532,666.62,666.19,1.12095395]
[1748027980334,1.287,666.65,666.19,1.12095395]
[1748027980633,1.07343971,666.64,666.19,1.12095395]
[1748027980830,1.07343971,666.63,666.19,1.12095395]
[1748027981034,1.07343971,666.62,666.19,1.12095395]
[1748027981233,1.287,666.65,666.19,1.12095395]
[1748027981433,1.0734504,666.64,666.19,1.12095395]
[1748027981634,1.0734504,666.63,666.19,1.12095395]
[1748027981835,1.0734504,666.62,666.19,1.12095395]
[1748027982036,1.287,666.65,666.19,1.12095395]
[1748027982237,1.07345695,666.64,666.19,1.12095395]
[1748027982436,1.07345695,666.63,666.19,1.12095395]
[1748027982735,1.07345695,666.62,666.19,1.12095395]
[1748027982936,1.07345695,666.61,666.19,1.12095395]
[1748027983139,1.07345695,666.6,666.19,1.12095395]
[1748027983337,1.07338162,666.59,666.19,1.12095395]
[1748027983538,1.287,666.65,666.19,1.12095395]
[1748027983733,1.55019916,666.64,666.19,1.12095395]
[1748027983935,1.55019916,666.63,666.19,1.12095395]
[1748027984137,1.07342215,666.62,666.19,1.12095395]
[1748027984335,1.07342215,666.61,666.19,1.12095395]
[1748027984537,1.07337933,666.6,666.19,1.12095395]
[1748027984836,1.287,666.65,666.17,1.12095395]
[1748027985037,1.55011312,666.64,666.17,1.12095395]
[1748027985236,1.55011312,666.63,666.17,1.12095395]
[1748027985439,1.07336264,666.62,666.17,1.12095395]
[1748027985639,1.07336264,666.61,666.17,1.12095395]
[1748027985837,1.07336264,666.6,666.17,1.12095395]
[1748027986038,1.07336264,666.59,666.17,1.12095395]
[1748027986235,1.287,666.65,666.17,1.12095395]
[1748027986439,1.55005375,666.64,666.17,1.12095395]
[1748027986638,1.55005375,666.63,666.17,1.12095395]
[1748027986834,1.07332091,666.62,666.17,1.12095395]
[1748027987036,1.07332091,666.61,666.17,1.12095395]
[1748027987233,1.07332091,666.6,666.17,1.12095395]
[1748027987438,1.287,666.65,666.17,1.12095395]
[1748027987738,1.550075,666.64,666.17,1.12095395]
[1748027987939,1.287,666.65,666.17,1.12095395]
[1748027987940,1.07333643,666.63,666.17,1.12095395]
[1748027988139,1.287,666.65,666.17,1.12095395]
[1748027988336,1.55007342,666.64,666.17,1.12095395]
[1748027988535,1.07333739,666.63,666.17,1.12095395]
[1748027988740,1.07333739,666.62,666.17,1.12095395]
[1748027988940,1.07333739,666.61,666.17,1.12095395]
[1748027989136,1.07333739,666.6,666.17,1.12095395]
[1748027989341,1.11877837,666.71,666.17,1.12095395]
[1748027989543,1.55008389,666.7,666.17,1.12095395]
[1748027989740,1.55008389,666.69,666.18,1.12095395]
[1748027989937,1.55008389,666.68,666.18,1.12095395]
[1748027990140,1.55007822,666.67,666.18,1.12095395]
[1748027990338,1.55007822,666.66,666.18,1.12095395]
[1748027990540,1.55007822,666.65,666.18,1.12095395]
[1748027990743,1.55007822,666.64,666.18,1.12095395]
[1748027990943,1.5500804,666.63,666.18,1.12095395]
[1748027991144,1.07333837,666.62,666.18,1.12095395]
[1748027991341,1.07333837,666.61,666.18,1.12095395]
[1748027991540,1.07333837,666.6,666.18,1.12095395]
[1748027991844,1.368,666.66,666.18,1.12095395]
[1748027992044,1.55010348,666.65,666.18,1.12095395]
[1748027992245,1.55010348,666.64,666.18,1.12095395]
[1748027992445,1.07335633,666.63,666.18,1.12095395]
[1748027992645,1.07335633,666.62,666.18,1.12095395]
[1748027992847,1.07335633,666.61,666.18,1.12095395]
[1748027993148,1.07335633,666.6,666.18,1.12095395]
[1748027993344,1.368,666.66,666.18,1.12095395]
[1748027993543,1.55010556,666.65,666.18,1.12095395]
[1748027993746,1.55011038,666.64,666.18,1.12095395]
[1748027993947,1.07336133,666.63,666.18,1.12095395]
[1748027994147,1.07336133,666.62,666.18,1.12095395]
[1748027994346,1.07336133,666.61,666.18,1.12095395]
[1748027994648,1.07336133,666.6,666.18,1.12095395]
[1748027994950,1.368,666.66,666.2,1.12095395]
[1748027995144,1.5501396,666.65,666.2,1.12095395]
[1748027995347,1.5501396,666.64,666.2,1.12095395]
[1748027995546,1.5501672,666.63,666.2,1.12095395]
[1748027995746,1.07340887,666.62,666.2,1.12095395]
[1748027995946,1.07340887,666.61,666.2,1.12095395]
[1748027996151,1.07340887,666.6,666.2,1.12095395]
[1748027996351,1.368,666.66,666.2,1.12095395]
[1748027996546,1.5501164,666.65,666.2,1.12095395]
[1748027996745,1.5501164,666.64,666.2,1.12095395]
[1748027996946,1.5501164,666.63,666.2,1.12095395]
[1748027997151,1.07336609,666.62,666.2,1.12095395]
[1748027997345,1.07336609,666.61,666.2,1.12095395]
[1748027997550,1.07336609,666.6,666.2,1.12095395]
[1748027997748,1.368,666.66,666.2,1.12095395]
[1748027997948,1.55005943,666.65,666.2,1.12095395]
[1748027998145,1.55005943,666.64,666.2,1.12095395]
[1748027998348,1.55005943,666.63,666.2,1.12095395]
[1748027998550,1.07332576,666.62,666.2,1.12095395]
[1748027998751,1.07332576,666.61,666.2,1.12095395]
[1748027998952,1.07332576,666.6,666.2,1.12095395]
[1748027999253,1.368,666.66,666.2,1.12095395]
[1748027999552,1.07329565,666.65,666.2,1.12095395]
[1748027999852,1.07329565,666.64,666.2,1.12095395]
[1748028000152,1.07329565,666.63,666.2,1.12095395]
[1748028000347,1.368,666.66,666.2,1.12095395]
[1748028000551,1.07339705,666.65,666.2,1.12095395]
[1748028000751,1.07339705,666.64,666.2,1.12095395]
[1748028000950,1.368,666.66,666.2,1.12095395]
[1748028001250,1.07340946,666.65,666.22,1.12095395]
[1748028001446,1.368,666.66,666.22,1.12095395]
[1748028001652,1.07341852,666.65,666.22,1.12095395]
[1748028001851,1.07341852,666.64,666.22,1.12095395]
[1748028002052,1.368,666.66,666.22,1.12095395]
[1748028002250,1.07343145,666.65,666.22,1.12095395]
[1748028002452,1.07343145,666.64,666.22,1.12095395]
[1748028002649,1.368,666.66,666.22,1.12095395]
[1748028002849,1.0733776,666.65,666.22,1.12095395]
[1748028003053,1.0733776,666.64,666.22,1.12095395]
[1748028003349,1.368,666.66,666.23,1.12095395]
[1748028003549,1.07583056,666.65,666.23,1.12095395]
[1748028003754,1.07583056,666.64,666.23,1.12095395]
[1748028003952,1.368,666.66,666.23,1.12095395]
[1748028004154,1.0757763,666.65,666.23,1.12095395]
[1748028004454,1.0757763,666.64,666.23,1.12095395]
[1748028004656,1.368,666.66,666.23,1.12095395]
[1748028004954,1.07576943,666.65,666.23,1.12095395]
[1748028005249,1.07576943,666.64,666.23,1.12095395]
[1748028005555,1.11877837,666.77,666.23,1.12095395]
[1748028005754,1.07571383,666.76,666.23,1.12095395]
[1748028005953,1.55241129,666.75,666.23,1.12095395]
[1748028006156,1.55241129,666.74,666.23,1.12095395]
[1748028006355,1.55241129,666.73,666.23,1.12095395]
[1748028006555,1.55241129,666.72,666.23,1.12095395]
[1748028006850,1.55241129,666.71,666.23,1.12095395]
[1748028007054,1.55241129,666.7,666.22,1.12095395]
[1748028007250,1.55241129,666.69,666.22,1.12095395]
[1748028007457,1.55241129,666.68,666.22,1.12095395]
[1748028007657,1.55222881,666.67,666.22,1.12095395]
[1748028007857,1.55222881,666.66,666.22,1.12095395]
[1748028008055,1.07553135,666.65,666.22,1.12095395]
[1748028008253,1.07553135,666.64,666.22,1.12095395]
[1748028008454,1.07553135,666.63,666.22,1.12095395]
[1748028008651,1.07553135,666.62,666.22,1.12095395]
[1748028008954,1.045,666.68,666.2,1.12095395]
[1748028009149,1.55181289,666.67,666.2,1.12095395]
[1748028009349,1.55181289,666.66,666.2,1.12095395]
[1748028009555,1.07543563,666.65,666.2,1.12095395]
[1748028009755,1.07543563,666.64,666.2,1.12095395]
[1748028010052,1.07543563,666.63,666.2,1.12095395]
[1748028010256,1.045,666.68,666.2,1.12095395]
[1748028010456,1.55184206,666.67,666.2,1.12095395]
[1748028010655,1.07540393,666.66,666.2,1.12095395]
[1748028010856,1.07540393,666.65,666.2,1.12095395]
[1748028011055,1.045,666.68,666.2,1.12095395]
[1748028011056,1.07540393,666.64,666.2,1.12095395]
[1748028011250,1.07540511,666.63,666.21,1.12095395]
[1748028011454,1.045,666.68,666.21,1.12095395]
[1748028011652,1.55178507,666.67,666.21,1.12095395]
[1748028011857,1.07539991,666.66,666.21,1.12095395]
[1748028012058,1.07539991,666.65,666.21,1.12095395]
[1748028012357,1.07539991,666.64,666.21,1.12095395]
[1748028012557,1.07539991,666.63,666.21,1.12095395]
[1748028012761,1.045,666.68,666.21,1.12095395]
[1748028012955,1.5524101,666.67,666.21,1.12095395]
[1748028013155,1.07544314,666.66,666.21,1.12095395]
[1748028013356,1.07544314,666.65,666.21,1.12095395]
[1748028013554,1.07544314,666.64,666.21,1.12095395]
[1748028013755,1.07544314,666.63,666.22,1.12095395]
[1748028013956,1.045,666.68,666.22,1.12095395]
[1748028014161,1.55241828,666.67,666.22,1.12095395]
[1748028014358,1.55240864,666.66,666.22,1.12095395]
[1748028014555,1.07544887,666.65,666.22,1.12095395]
[1748028014755,1.07544887,666.64,666.22,1.12095395]
[1748028015060,1.045,666.68,666.22,1.12095395]
[1748028015257,1.55228294,666.67,666.22,1.12095395]
[1748028015464,1.07535507,666.66,666.22,1.12095395]
[1748028015661,1.07535507,666.65,666.22,1.12095395]
[1748028015956,1.045,666.68,666.25,1.12095395]
[1748028015957,1.07535507,666.64,666.25,1.12095395]
[1748028016164,1.07535507,666.63,666.25,1.12095395]
[1748028016364,1.045,666.68,666.25,1.12095395]
[1748028016661,1.55207768,666.67,666.25,1.12095395]
[1748028016862,1.07521283,666.66,666.25,1.12095395]
[1748028017062,1.07521462,666.65,666.25,1.12095395]
[1748028017263,1.07521462,666.64,666.25,1.12095395]
[1748028017463,1.07521462,666.63,666.25,1.12095395]
[1748028017664,1.045,666.68,666.25,1.12095395]
[1748028017865,1.5520772,666.67,666.23,1.12095395]
[1748028018163,1.07521251,666.66,666.23,1.12095395]
[1748028018363,1.07521251,666.65,666.23,1.12095395]
[1748028018565,1.07521251,666.64,666.23,1.12095395]
[1748028018763,1.07515784,666.63,666.23,1.12095395]
[1748028019063,1.045,666.68,666.23,1.12095395]
[1748028019264,1.55182863,666.67,666.23,1.12095395]
[1748028019464,1.07504031,666.66,666.23,1.12095395]
[1748028019664,1.07504031,666.65,666.23,1.12095395]
[1748028019964,1.07504031,666.64,666.23,1.12095395]
[1748028020165,1.045,666.68,666.23,1.12095395]
[1748028020360,1.07489356,666.67,666.23,1.12095395]
[1748028020559,1.045,666.68,666.23,1.12095395]
[1748028020764,1.07485231,666.67,666.24,1.12095395]
[1748028020959,1.07485231,666.66,666.24,1.12095395]
[1748028021162,1.07485231,666.65,666.24,1.12095395]
[1748028021464,1.07485231,666.64,666.24,1.12095395]
[1748028021665,1.045,666.68,666.24,1.12095395]
[1748028021864,1.07454708,666.67,666.24,1.12095395]
[1748028022065,1.07454708,666.66,666.24,1.12095395]
[1748028022261,1.07454708,666.65,666.24,1.12095395]
[1748028022466,1.07454708,666.64,666.24,1.12095395]
[1748028022669,1.045,666.68,666.24,1.12095395]
[1748028022870,1.07451874,666.67,666.24,1.12095395]
[1748028023071,1.07451874,666.66,666.24,1.12095395]
[1748028023263,1.07451874,666.65,666.24,1.12095395]
[1748028023468,1.07451874,666.64,666.24,1.12095395]
[1748028023666,1.045,666.68,666.24,1.12095395]
[1748028023868,1.07443591,666.67,666.24,1.12095395]
[1748028024069,1.07443591,666.66,666.24,1.12095395]
[1748028024370,1.07439275,666.65,666.24,1.12095395]
[1748028024563,1.07439275,666.64,666.24,1.12095395]
[1748028024768,1.045,666.68,666.24,1.12095395]
[1748028025067,1.07433211,666.67,666.24,1.12095395]
[1748028025266,1.07433211,666.66,666.24,1.12095395]
[1748028025465,1.07433211,666.65,666.24,1.12095395]
[1748028025665,1.07433211,666.64,666.24,1.12095395]
[1748028025871,1.045,666.68,666.24,1.12095395]
[1748028026069,1.07428903,666.67,666.24,1.12095395]
[1748028026269,1.07428903,666.66,666.24,1.12095395]
[1748028026473,1.07428903,666.65,666.24,1.12095395]
[1748028026674,1.07428903,666.64,666.24,1.12095395]
[1748028026874,1.07428903,666.63,666.24,1.12095395]
[1748028027075,1.045,666.68,666.24,1.12095395]
[1748028027268,1.07427168,666.67,666.24,1.12095395]
[1748028027468,1.07427168,666.66,666.24,1.12095395]
[1748028027673,1.07427168,666.65,666.24,1.12095395]
[1748028027871,1.0742582,666.64,666.24,1.12095395]
[1748028028175,1.0742582,666.63,666.24,1.12095395]
[1748028028369,1.045,666.68,666.24,1.12095395]
[1748028028568,1.07424708,666.67,666.24,1.12095395]
[1748028028770,1.07424708,666.66,666.24,1.12095395]
[1748028029069,1.07424708,666.65,666.23,1.12095395]
[1748028029275,1.07424708,666.64,666.23,1.12095395]
[1748028029470,1.045,666.68,666.23,1.12095395]
[1748028029676,1.07424895,666.67,666.23,1.12095395]
[1748028029976,1.07424895,666.66,666.23,1.12095395]
[1748028030178,1.07424895,666.65,666.23,1.12095395]
[1748028030379,1.07424895,666.64,666.23,1.12095395]
[1748028030677,1.045,666.68,666.23,1.12095395]
[1748028030878,1.07423816,666.67,666.23,1.12095395]
[1748028031178,1.07423816,666.66,666.23,1.12095395]
[1748028031373,1.045,666.68,666.23,1.12095395]
[1748028031576,1.07423057,666.67,666.23,1.12095395]
[1748028031778,1.07423057,666.66,666.23,1.12095395]
[1748028031978,1.07423057,666.65,666.23,1.12095395]
[1748028032179,1.07423057,666.64,666.23,1.12095395]
[1748028032380,1.045,666.68,666.23,1.12095395]
[1748028032581,1.07421688,666.67,666.23,1.12095395]
[1748028032781,1.07421688,666.66,666.23,1.12095395]
[1748028033080,1.07421688,666.65,666.23,1.12095395]
[1748028033279,1.07430828,666.64,666.23,1.12095395]
[1748028033480,1.045,666.68,666.23,1.12095395]
[1748028033680,1.07432314,666.67,666.23,1.12095395]
[1748028033881,1.07432314,666.66,666.23,1.12095395]
[1748028034080,1.045,666.68,666.23,1.12095395]
[1748028034280,1.07434766,666.67,666.23,1.12095395]
[1748028034476,1.045,666.68,666.23,1.12095395]
[1748028034681,1.07432579,666.67,666.23,1.12095395]
[1748028034881,1.045,666.68,666.23,1.12095395]
[1748028035083,1.07432531,666.67,666.25,1.12095395]
[1748028035282,1.07432526,666.66,666.25,1.12095395]
[1748028035483,1.045,666.68,666.25,1.12095395]
[1748028035783,1.07430112,666.67,666.25,1.12095395]
[1748028035981,1.07430112,666.66,666.25,1.12095395]
[1748028036181,1.045,666.68,666.25,1.12095395]
[1748028036382,1.07428926,666.67,666.25,1.12095395]
[1748028036582,1.07428926,666.66,666.25,1.12095395]
[1748028036784,1.045,666.68,666.25,1.12095395]
[1748028037084,1.07427476,666.67,666.25,1.12095395]
[1748028037284,1.07427476,666.66,666.25,1.12095395]
[1748028037581,1.045,666.68,666.25,1.12095395]
[1748028037784,1.07424737,666.67,666.25,1.12095395]
[1748028037986,1.045,666.68,666.25,1.12095395]
[1748028038180,1.07424837,666.67,666.25,1.12095395]
[1748028038381,1.045,666.68,666.25,1.12095395]
[1748028038583,1.07427959,666.67,666.25,1.12095395]
[1748028038784,1.045,666.68,666.25,1.12095395]
[1748028038985,1.07435771,666.67,666.25,1.12095395]
[1748028039185,1.045,666.68,666.25,1.12095395]
[1748028039381,1.07455184,666.67,666.25,1.12095395]
[1748028039584,1.045,666.68,666.25,1.12095395]
[1748028039885,1.07448775,666.67,666.25,1.12095395]
[1748028040185,1.045,666.68,666.26,1.12095395]
[1748028040386,1.07455993,666.67,666.26,1.12095395]
[1748028040587,1.045,666.68,666.26,1.12095395]
[1748028040885,1.07455416,666.67,666.26,1.12095395]
[1748028041082,1.045,666.68,666.26,1.12095395]
[1748028041283,1.07450711,666.67,666.26,1.12095395]
[1748028041485,1.045,666.68,666.26,1.12095395]
[1748028042788,1.045,666.68,666.3,1.12095395]
[1748028045691,1.045,666.68,666.27,1.12095395]
[1748028048587,1.045,666.68,666.26,1.12095395]
[1748028050992,1.045,666.68,666.3,1.12095395]
[1748028052595,0.29991302,666.86,666.3,1.12095395]
[1748028052797,1.55093502,666.85,666.3,1.12095395]
[1748028053100,1.07388795,666.84,666.3,1.12095395]
[1748028053395,1.07395418,666.83,666.34,1.12095395]
[1748028053595,1.07395418,666.82,666.34,1.12095395]
[1748028053795,1.07395418,666.81,666.34,1.12095395]
[1748028054096,0.29991302,666.86,666.34,1.12095395]
[1748028054390,2.21181912,666.85,666.34,1.12095395]
[1748028054590,1.07381912,666.84,666.34,1.12095395]
[1748028054795,1.07381912,666.83,666.34,1.12095395]
[1748028054988,1.138,666.85,666.34,1.12095395]
[1748028055597,1.138,666.85,666.42,1.12095395]
[1748028058797,1.138,666.85,666.41,1.12095395]
[1748028061705,1.138,666.85,666.39,1.12095395]
[1748028064304,1.138,666.85,666.4,1.12095395]
[1748028067210,1.138,666.85,666.38,1.12095395]
[1748028069811,1.138,666.85,666.36,1.12095395]
[1748028075212,1.138,666.85,666.35,1.12095395]
[1748028075515,0.29991302,666.86,666.35,1.12095395]
[1748028077114,1.279,666.85,666.32,1.12095395]
[1748028079717,1.279,666.85,666.31,1.12095395]
[1748028083022,1.279,666.85,666.33,1.12095395]
[1748028084523,1.279,666.85,666.34,1.12095395]
[1748028088226,1.279,666.85,666.36,1.12095395]
[1748028092229,1.279,666.85,666.38,1.12095395]
[1748028093131,0.29991302,666.86,666.38,1.12095395]
[1748028094628,1.11877837,667.06,666.38,1.12095395]
[1748028094827,1.5469228,667.05,666.38,1.12095395]
[1748028095030,1.5469228,667.04,666.38,1.12095395]
[1748028095230,1.07110539,667.03,666.38,1.12095395]
[1748028095531,1.07110539,667.02,666.38,1.12095395]
[1748028095726,1.07110539,667.01,666.38,1.12095395]
[1748028096731,1.131,667.02,666.38,1.12095395]
[1748028097231,1.07126259,667.01,666.38,1.12095395]
[1748028097431,1.131,667.02,666.38,1.12095395]
[1748028097631,1.07134768,667.01,666.38,1.12095395]
[1748028097931,1.131,667.02,666.38,1.12095395]
[1748028098227,1.07134362,667.01,666.4,1.12095395]
[1748028098432,1.131,667.02,666.4,1.12095395]
[1748028098628,1.0714344,667.01,666.4,1.12095395]
[1748028098832,1.131,667.02,666.4,1.12095395]
[1748028099130,1.07143707,667.01,666.4,1.12095395]
[1748028099332,1.131,667.02,666.4,1.12095395]
[1748028099527,1.0713941,667.01,666.4,1.12095395]
[1748028099732,1.0713941,667.0,666.4,1.12095395]
[1748028099935,1.131,667.02,666.41,1.12095395]
[1748028102537,1.131,667.02,666.46,1.12095395]
[1748028102835,1.07177026,667.01,666.46,1.12095395]
[1748028103036,1.131,667.02,666.46,1.12095395]